fUST/lending_fUST_20250611
["ID","MTS","AMOUNT","RATE_DAILY","PERIOD"]
[365372989,1749623443872,-460.0,0.00023561,4]
[365372991,1749623443882,-485.57,0.00023561,4]
[365372993,1749623443891,-516.39610709,0.00023561,4]
[365372995,1749623443901,-506.96,0.00023561,4]
[365372997,1749623443911,-1444.09,0.00023561,4]
[365372999,1749623443920,-460.0,0.00023561,4]
[365373001,1749623443930,-460.0,0.00023561,4]
[365373004,1749623443939,-460.0,0.00023561,4]
[365373006,1749623443949,-1100.1,0.00023561,4]
[365373008,1749623443959,-612.65,0.00023561,4]
[365373010,1749623443969,-869.92,0.00023561,4]
[365373012,1749623443979,-2110.39,0.00023561,4]
[365373014,1749623443989,-2040.14,0.00023561,4]
[365373016,1749623443998,-460.0,0.00023561,4]
[365373018,1749623444007,-1145.15,0.00023561,4]
[365373020,1749623444017,-2200.32,0.00023561,4]
[365373022,1749623444026,-460.0,0.00023561,4]
[365373024,1749623444035,-837.45,0.00023561,4]
[365373026,1749623444045,-460.0,0.00023561,4]
[365373027,1749623444054,-1057.2,0.00023561,4]
[365373029,1749623444064,-980.49,0.00023561,4]
[365373031,1749623444073,-427.76,0.000236,7]
[365373033,1749623444084,-1000.0,0.00023602,2]
[365373036,1749623444094,-1000.0,0.00023604,2]
[365373037,1749623444104,-3874.0,0.00023647,2]
[365373039,1749623444113,-1793.0972285,0.00023659,9]
[365373042,1749623444123,-164.1810118,0.00023671,2]
[365373044,1749623444132,-1603.38956054,0.0002368,2]
[365373046,1749623444143,-5000.0,0.00023682,2]
[365373048,1749623444152,-206382.29492601,0.000237,2]
[365373050,1749623444162,-587.0,0.00023712,2]
[365373052,1749623444171,-200.0,0.00023717,7]
[365373054,1749623444181,-205.857479,0.00023717,7]
[365373056,1749623444190,-164.1810118,0.00023726,2]
[365373058,1749623444200,-797.83299488,0.00023735,2]
[365373060,1749623444209,-601.74494822,0.00023765,2]
[365373062,1749623444219,-1793.0972285,0.00023797,9]
[365373064,1749623444229,-25676.2148099,0.000238,2]
[365373066,1749623444238,-179379.83815196,0.000238,3]
[365373068,1749623444247,-229.71724145,0.000238,3]
[365373070,1749623444257,-634.17,0.00023835,4]
[365373071,1749623444266,-1358.42,0.00023835,4]
[365373072,1749623444276,-460.0,0.00023835,4]
[365373073,1749623444285,-485.57,0.00023835,4]
[365373074,1749623444295,-506.96,0.00023835,4]
[365373075,1749623444304,-1444.09,0.00023835,4]
[365373076,1749623444314,-460.0,0.00023835,4]
[365373077,1749623444324,-460.0,0.00023835,4]
[365373078,1749623444335,-460.0,0.00023835,4]
[365373079,1749623444344,-1100.1,0.00023835,4]
[365373080,1749623444354,-612.65,0.00023835,4]
[365373081,1749623444363,-869.92,0.00023835,4]
[365373082,1749623444373,-2110.39,0.00023835,4]
[365373083,1749623444382,-2040.14,0.00023835,4]
[365373084,1749623444392,-460.0,0.00023835,4]
[365373085,1749623444401,-1145.15,0.00023835,4]
[365373086,1749623444411,-2200.32,0.00023835,4]
[365373087,1749623444420,-460.0,0.00023835,4]
[365373088,1749623444430,-837.45,0.00023835,4]
[365373089,1749623444439,-460.0,0.00023835,4]
[365373090,1749623444448,-1057.2,0.00023835,4]
[365373091,1749623444457,-980.49,0.00023835,4]
[365373092,1749623444466,-431.3801797,0.00023863,2]
[365373093,1749623444476,-306.0,0.00023863,2]
[365373094,1749623444509,-306.0,0.00023863,2]
[365373095,1749623444519,-377.85658625,0.000239,2]
[365373096,1749623444528,-1793.0972285,0.00023934,10]
[365373097,1749623444537,-1292.12,0.00023952,2]
[365373098,1749623444547,-1128.65759618,0.00024,10]
[365373099,1749623444556,-202.28223206,0.00024,2]
[365373100,1749623444565,-158.35,0.00024,2]
[365373101,1749623444575,-365.0707398,0.00024,2]
[365373102,1749623444585,-365.0707398,0.00024,2]
[365373103,1749623444594,-365.0707398,0.00024,2]
[365373104,1749623444603,-365.0707398,0.00024,2]
[365373105,1749623444613,-365.0707398,0.00024,2]
[365373106,1749623444622,-365.0707398,0.00024,2]
[365373107,1749623444631,-365.0707398,0.00024,2]
[365373108,1749623444641,-365.0707398,0.00024,2]
[365373109,1749623444651,-365.0707398,0.00024,2]
[365373110,1749623444660,-1000.0,0.00024,2]
[365373111,1749623444673,-365.0707398,0.00024,2]
[365373112,1749623444682,-835.03886221,0.00024,7]
[365373113,1749623444691,-424.19973472,0.00024,7]
[365373114,1749623444700,-160.0,0.00024,7]
[365373115,1749623444711,-712.3774261,0.00024,2]
[365373116,1749623444720,-160.0,0.00024,7]
[365373117,1749623444730,-405.21,0.00024,3]
[365373118,1749623444740,-500.0,0.00024,3]
[365373119,1749623444750,-3305.01235838,0.00024,2]
[365373120,1749623444759,-500.0,0.00024,3]
[365373121,1749623444770,-229.71724145,0.00024,7]
[365373122,1749623444779,-1793.62237299,0.00024,5]
[365373123,1749623444789,-1257.589503,0.00024009,3]
[365373124,1749623444798,-587.0,0.00024053,2]
[365373125,1749623444808,-680.0,0.00024059,2]
[365373126,1749623444817,-1210.524356,0.00024068,2]
[365373127,1749623444827,-1793.0972285,0.00024072,10]
[365373128,1749623444837,-166.67,0.00024108,2]
[365373129,1749623444847,-27603.44857242,0.00024109,2]
[365373130,1749623444857,-634.17,0.00024109,4]
[365373131,1749623444866,-1358.42,0.00024109,4]
[365373132,1749623444876,-460.0,0.00024109,4]
[365373133,1749623444885,-485.57,0.00024109,4]
[365373134,1749623444894,-506.96,0.00024109,4]
[365373135,1749623444903,-1444.09,0.00024109,4]
[365373136,1749623444913,-460.0,0.00024109,4]
[365373137,1749623444923,-460.0,0.00024109,4]
[365373138,1749623444932,-499.74155541,0.00024109,4]
[365373139,1749623444942,-1100.1,0.00024109,4]
[365373140,1749623444952,-612.65,0.00024109,4]
[365373141,1749623444962,-869.92,0.00024109,4]
[365373142,1749623444972,-2110.39,0.00024109,4]
[365373143,1749623444982,-2040.14,0.00024109,4]
[365373144,1749623444992,-460.0,0.00024109,4]
[365373145,1749623445003,-1145.15,0.00024109,4]
[365373146,1749623445014,-2200.32,0.00024109,4]
[365373147,1749623445023,-460.0,0.00024109,4]
[365373148,1749623445033,-837.45,0.00024109,4]
[365373149,1749623445043,-460.0,0.00024109,4]
[365373150,1749623445053,-1057.2,0.00024109,4]
[365373151,1749623445062,-980.49,0.00024109,4]
[365373152,1749623445072,-1500.0,0.0002415,2]
[365373153,1749623445082,-1500.0,0.00024151,2]
[365373154,1749623445092,-228.84233157,0.00024157,2]
[365373155,1749623445102,-2160.0,0.00024167,2]
[365373156,1749623445111,-229.447,0.00024167,2]
[365373157,1749623445121,-405.0,0.00024167,2]
[365373158,1749623445131,-969.196,0.00024167,2]
[365373159,1749623445140,-847.0,0.00024172,2]
[365373160,1749623445150,-1793.0972285,0.0002421,10]
[365373161,1749623445159,-5000.0,0.0002423,2]
[365373162,1749623445169,-160.0,0.0002425,3]
[365373163,1749623445178,-162.20665653,0.0002425,5]
[365373164,1749623445187,-6434.45288652,0.00024256,3]
[365373165,1749623445197,-1253.0,0.00024299,2]
[365373166,1749623445206,-151.0,0.000243,7]
[365373167,1749623445216,-800.0,0.00024311,2]
[365373168,1749623445226,-1793.0972285,0.00024348,11]
[365373169,1749623445236,-39450.0,0.0002435,7]
[365373170,1749623445246,-160.0,0.0002435,7]
[365373171,1749623445256,-160.0,0.0002435,7]
[365373172,1749623445265,-634.17,0.00024383,4]
[365373173,1749623445275,-1358.42,0.00024383,4]
[365373174,1749623445285,-460.0,0.00024383,4]
[365373175,1749623445295,-485.57,0.00024383,4]
[365373176,1749623445306,-506.96,0.00024383,4]
[365373177,1749623445315,-1444.09,0.00024383,4]
[365373178,1749623445325,-460.0,0.00024383,4]
[365373179,1749623445337,-460.0,0.00024383,4]
[365373180,1749623445347,-1100.1,0.00024383,4]
[365373181,1749623445357,-612.65,0.00024383,4]
[365373182,1749623445366,-869.92,0.00024383,4]
[365373183,1749623445376,-2110.39,0.00024383,4]
[365373184,1749623445386,-2040.14,0.00024383,4]
[365373185,1749623445396,-460.0,0.00024383,4]
[365373186,1749623445406,-1145.15,0.00024383,4]
[365373187,1749623445416,-2200.32,0.00024383,4]
[365373188,1749623445426,-460.0,0.00024383,4]
[365373189,1749623445436,-837.45,0.00024383,4]
[365373190,1749623445446,-460.0,0.00024383,4]
[365373191,1749623445456,-1057.2,0.00024383,4]
[365373192,1749623445466,-980.49,0.00024383,4]
[365373193,1749623445476,-151.0,0.000244,5]
[365373194,1749623445485,-151.0,0.000244,8]
[365373195,1749623445495,-1381.44,0.000244,7]
[365373196,1749623445504,-43292.58,0.000244,7]
[365373197,1749623445514,-208.04675485,0.0002447,7]
[365373198,1749623445524,-501.29927995,0.00024473,2]
[365373199,1749623445534,-1121.363619,0.0002448,5]
[365373200,1749623445543,-214.3146005,0.00024483,2]
[365373201,1749623445553,-1793.0972285,0.00024486,11]
[365373202,1749623445563,-1745.0,0.00024494,3]
[365373203,1749623445573,-1745.0,0.00024494,3]
[365373204,1749623445583,-1745.0,0.00024494,3]
[365373205,1749623445593,-1745.0,0.00024494,3]
[365373206,1749623445603,-489.097301,0.00024494,3]
[365373207,1749623446133,-515.57135006,0.000203,3]
[365373306,1749624529222,160.287833,0.00013699,2]
[365373347,1749624632139,-251.90439083,0.000189,2]
[365373349,1749624632149,-250.228168,0.00019135,2]
[365373351,1749624632159,-1826.00214029,0.00019849,2]
[365373353,1749624632171,-1818.26507771,0.00019849,2]
[365373355,1749624632181,-282.0,0.00019862,2]
[365373357,1749624632191,-667.94022317,0.00019863,2]
[365373359,1749624632202,-362.0874309,0.00019863,2]
[365373361,1749624632214,-385.83333708,0.00019863,2]
[365373455,1749624638283,-7803.64080825,0.00019863,2]
[365373457,1749624638294,-182.03,0.00019999,2]
[365373458,1749624638303,-270.67,0.00020147,2]
[365373459,1749624638313,-300.0,0.00020299,2]
[365373460,1749624638323,-11344.6805627,0.000203,3]
[365373461,1749624638332,-11186.79680739,0.000203,3]
[365373462,1749624638342,-160.0,0.000203,3]
[365373463,1749624638351,-213.16534259,0.000203,3]
[365373464,1749624638362,-844.64040732,0.000203,3]
[365373465,1749624638372,-233.57305908,0.00020547,2]
[365373466,1749624638381,-1498.06827652,0.000209,4]
[365373467,1749624638391,-160.287833,0.00020951,2]
[365373468,1749624638400,-1498.06827629,0.00021038,4]
[365373469,1749624638409,-500.0,0.00021064,2]
[365373470,1749624638420,-500.0,0.00021094,2]
[365373471,1749624638430,-500.0,0.00021094,2]
[365373472,1749624638441,-486.78629751,0.00021094,2]
[365373473,1749624638451,-171.97399358,0.00021094,2]
[365373475,1749624638460,-153.0,0.00021094,2]
[365373476,1749624638469,-204.32145859,0.00021094,2]
[365373477,1749624638479,-500.0,0.00021094,2]
[365373478,1749624638488,-214.0413015,0.00021094,2]
[365373479,1749624638498,-460.0,0.00021095,4]
[365373480,1749624638508,-460.0,0.00021095,4]
[365373481,1749624638517,-486.89014251,0.00021095,4]
[365373482,1749624638526,-460.0,0.00021095,4]
[365373483,1749624638535,-460.0,0.00021095,4]
[365373484,1749624638545,-320.0,0.00021095,4]
[365373485,1749624638554,-507.75874635,0.00021095,4]
[365373486,1749624638563,-200.0,0.00021095,4]
[365373487,1749624638573,-460.0,0.00021095,4]
[365373488,1749624638582,-460.0,0.00021095,4]
[365373489,1749624638591,-460.0,0.00021095,4]
[365373490,1749624638602,-274.78,0.00021095,4]
[365373491,1749624638612,-400.0,0.00021095,4]
[365373492,1749624638622,-460.0,0.00021095,4]
[365373493,1749624638631,-390.0,0.00021095,4]
[365373494,1749624638640,-460.0,0.00021095,4]
[365373495,1749624638649,-460.0,0.00021095,4]
[365373496,1749624638658,-460.0,0.00021095,4]
[365373497,1749624638668,-420.0,0.00021095,4]
[365373498,1749624638678,-460.0,0.00021095,4]
[365373499,1749624638689,-460.0,0.00021095,4]
[365373500,1749624638698,-460.0,0.00021095,4]
[365373501,1749624638707,-420.0,0.00021095,4]
[365373502,1749624638716,-460.0,0.00021095,4]
[365373503,1749624638730,-460.0,0.00021095,4]
[365373504,1749624638751,-400.0,0.00021095,4]
[365373505,1749624638760,-400.0,0.00021095,4]
[365373506,1749624638771,-273.29,0.00021095,4]
[365373507,1749624638780,-460.0,0.00021095,4]
[365373508,1749624638789,-460.0,0.00021095,4]
[365373509,1749624638799,-460.0,0.00021095,4]
[365373510,1749624638809,-460.0,0.00021095,4]
[365373511,1749624638820,-460.0,0.00021095,4]
[365373512,1749624638829,-460.0,0.00021095,4]
[365373513,1749624638839,-460.0,0.00021095,4]
[365373514,1749624638848,-460.0,0.00021095,4]
[365373515,1749624638858,-460.0,0.00021095,4]
[365373516,1749624638868,-460.0,0.00021095,4]
[365373517,1749624638877,-460.0,0.00021095,4]
[365373518,1749624638887,-370.0,0.00021095,4]
[365373519,1749624638896,-394.97702531,0.00021095,4]
[365373520,1749624638906,-370.0,0.00021095,4]
[365373521,1749624638923,-460.0,0.00021095,4]
[365373522,1749624638933,-460.0,0.00021095,4]
[365373523,1749624638943,-460.0,0.00021095,4]
[365373524,1749624638953,-460.0,0.00021095,4]
[365373525,1749624638963,-460.0,0.00021095,4]
[365373526,1749624638974,-460.0,0.00021095,4]
[365373527,1749624638984,-598.96000003,0.00021095,4]
[365373528,1749624638995,-548.24481015,0.00021095,4]
[365373529,1749624639006,-460.0,0.00021095,4]
[365373530,1749624639016,-460.0,0.00021095,4]
[365373531,1749624639030,-1056.32,0.00021095,4]
[365373532,1749624639040,-460.0,0.00021095,4]
[365373533,1749624639049,-370.0,0.00021095,4]
[365373534,1749624639059,-430.0,0.00021095,4]
[365373535,1749624639069,-250.26799731,0.00021095,4]
[365373536,1749624639080,-460.0,0.00021095,4]
[365373537,1749624639090,-918.59,0.00021095,4]
[365373538,1749624639100,-460.0,0.00021095,4]
[365373539,1749624639111,-460.0,0.00021095,4]
[365373540,1749624639121,-430.0,0.00021095,4]
[365373541,1749624639131,-460.0,0.00021095,4]
[365373542,1749624639141,-460.0,0.00021095,4]
[365373543,1749624639151,-1193.22,0.00021095,4]
[365373544,1749624639162,-460.0,0.00021095,4]
[365373545,1749624639172,-460.0,0.00021095,4]
[365373546,1749624639181,-460.0,0.00021095,4]
[365373547,1749624639191,-460.0,0.00021095,4]
[365373548,1749624639201,-460.0,0.00021095,4]
[365373549,1749624639211,-460.0,0.00021095,4]
[365373550,1749624639220,-430.64716713,0.00021095,4]
[365373551,1749624639230,-460.0,0.00021095,4]
[365373552,1749624639240,-460.0,0.00021095,4]
[365373553,1749624639249,-460.0,0.00021095,4]
[365373554,1749624639259,-460.0,0.00021095,4]
[365373555,1749624639270,-460.0,0.00021095,4]
[365373556,1749624639280,-237.34272,0.00021095,4]
[365373557,1749624639290,-925.05,0.00021095,4]
[365373558,1749624639299,-460.0,0.00021095,4]
[365373559,1749624639309,-460.0,0.00021095,4]
[365373560,1749624639318,-460.0,0.00021095,4]
[365373561,1749624639328,-460.0,0.00021095,4]
[365373562,1749624639337,-460.0,0.00021095,4]
[365373563,1749624639346,-2878.74,0.00021095,4]
[365373564,1749624639357,-460.0,0.00021095,4]
[365373565,1749624639366,-440.0,0.00021095,4]
[365373566,1749624639375,-460.0,0.00021095,4]
[365373567,1749624639385,-1206.43,0.00021095,4]
[365373568,1749624639394,-400.0,0.00021095,4]
[365373569,1749624639403,-460.0,0.00021095,4]
[365373570,1749624639412,-400.0,0.00021095,4]
[365373571,1749624639422,-460.0,0.00021095,4]
[365373572,1749624639432,-421.30529598,0.00021095,4]
[365373573,1749624639442,-460.0,0.00021095,4]
[365373574,1749624639458,-460.0,0.00021095,4]
[365373575,1749624639472,-460.0,0.00021095,4]
[365373576,1749624639482,-460.0,0.00021095,4]
[365373577,1749624639492,-943.39,0.00021095,4]
[365373578,1749624639502,-460.0,0.00021095,4]
[365373579,1749624639512,-460.0,0.00021095,4]
[365373580,1749624639527,-460.0,0.00021095,4]
[365373581,1749624639537,-460.0,0.00021095,4]
[365373582,1749624639547,-606.07,0.00021095,4]
[365373583,1749624639557,-420.0,0.00021095,4]
[365373584,1749624639566,-460.0,0.00021095,4]
[365373585,1749624639576,-460.0,0.00021095,4]
[365373586,1749624639585,-355.7589457,0.00021095,4]
[365373587,1749624639595,-871.99,0.00021095,4]
[365373588,1749624639604,-460.0,0.00021095,4]
[365373589,1749624639615,-460.0,0.00021095,4]
[365373590,1749624639624,-460.0,0.00021095,4]
[365373591,1749624639634,-460.0,0.00021095,2]
[365373592,1749624639644,-1536.34,0.00021095,4]
[365373593,1749624639656,-1822.62,0.00021095,4]
[365373594,1749624639666,-460.0,0.00021095,4]
[365373595,1749624639677,-326.11544116,0.00021095,4]
[365373596,1749624639687,-460.0,0.00021095,4]
[365373597,1749624639696,-460.0,0.00021095,4]
[365373598,1749624639706,-460.0,0.00021095,4]
[365373599,1749624639716,-1140.38,0.00021095,4]
[365373600,1749624639726,-460.0,0.00021095,4]
[365373601,1749624639736,-460.0,0.00021095,4]
[365373602,1749624639746,-460.0,0.00021095,4]
[365373603,1749624639755,-460.0,0.00021095,4]
[365373604,1749624639766,-460.0,0.00021095,4]
[365373605,1749624639776,-2282.66,0.00021095,4]
[365373606,1749624639786,-460.0,0.00021095,4]
[365373607,1749624639796,-2561.12,0.00021095,4]
[365373608,1749624639807,-2224.68,0.00021095,4]
[365373609,1749624639817,-2932.18,0.00021095,4]
[365373610,1749624639826,-460.0,0.00021095,4]
[365373611,1749624639836,-460.0,0.00021095,4]
[365373613,1749624639846,-460.0,0.00021095,4]
[365373614,1749624639856,-460.0,0.00021095,4]
[365373615,1749624639866,-460.0,0.00021095,4]
[365373616,1749624639876,-460.0,0.00021095,4]
[365373617,1749624640016,-460.0,0.00021095,4]
[365373618,1749624640031,-714.16,0.00021095,4]
[365373619,1749624640042,-802.33,0.00021095,4]
[365373620,1749624640052,-460.0,0.00021095,4]
[365373621,1749624640062,-460.0,0.00021095,4]
[365373622,1749624640071,-180.0,0.00021095,4]
[365373623,1749624640080,-460.0,0.00021095,4]
[365373624,1749624640090,-460.0,0.00021095,4]
[365373625,1749624640100,-460.0,0.00021095,4]
[365373626,1749624640110,-460.0,0.00021095,4]
[365373627,1749624640119,-460.0,0.00021095,4]
[365373628,1749624640128,-460.0,0.00021095,4]
[365373629,1749624640138,-329.75,0.00021095,4]
[365373630,1749624640146,-460.0,0.00021095,4]
[365373631,1749624640156,-371.38752284,0.00021095,4]
[365373632,1749624640165,-541.35,0.00021106,2]
[365373633,1749624640174,-1498.06827629,0.00021176,4]
[365373634,1749624640184,-1498.06827629,0.00021314,5]
[365373635,1749624640194,-182.03,0.00021369,2]
[365373636,1749624640203,-350.0,0.00021369,4]
[365373637,1749624640213,-460.0,0.00021369,4]
[365373638,1749624640224,-460.0,0.00021369,4]
[365373639,1749624640233,-460.0,0.00021369,4]
[365373640,1749624640243,-420.0,0.00021369,4]
[365373641,1749624640252,-262.71695512,0.00021369,4]
[365373642,1749624640261,-400.0,0.00021369,4]
[365373644,1749624640270,-152.43938122,0.00021369,4]
[365373645,1749624640282,-460.89,0.00021369,4]
[365373646,1749624640291,-301.17851864,0.00021369,4]
[365373647,1749624640301,-523.66,0.00021369,4]
[365373648,1749624640310,-562.62763877,0.00021369,4]
[365373649,1749624640320,-495.78953446,0.00021369,4]
[365373650,1749624640330,-460.0,0.00021369,4]
[365373651,1749624640339,-460.0,0.00021369,4]
[365373652,1749624640349,-175.28618288,0.00021369,4]
[365373653,1749624640358,-460.0,0.00021369,4]
[365373654,1749624640368,-460.0,0.00021369,4]
[365373655,1749624640378,-460.0,0.00021369,4]
[365373656,1749624640387,-310.0,0.00021369,4]
[365373658,1749624640397,-310.0,0.00021369,4]
[365373660,1749624640406,-1056.32,0.00021369,4]
[365373662,1749624640416,-460.0,0.00021369,4]
[365373664,1749624640425,-460.0,0.00021369,4]
[365373666,1749624640435,-918.59,0.00021369,4]
[365373668,1749624640444,-460.0,0.00021369,4]
[365373670,1749624640454,-460.0,0.00021369,4]
[365373672,1749624640463,-460.0,0.00021369,4]
[365373674,1749624640472,-1193.22,0.00021369,4]
[365373676,1749624640482,-460.0,0.00021369,4]
[365373678,1749624640491,-447.51941042,0.00021369,4]
[365373680,1749624640500,-460.0,0.00021369,4]
[365373682,1749624640510,-460.0,0.00021369,4]
[365373684,1749624640519,-460.0,0.00021369,4]
[365373686,1749624640529,-460.0,0.00021369,4]
[365373688,1749624640538,-460.0,0.00021369,4]
[365373690,1749624640548,-460.0,0.00021369,4]
[365373692,1749624640557,-925.05,0.00021369,4]
[365373694,1749624640567,-460.0,0.00021369,4]
[365373696,1749624640577,-460.0,0.00021369,4]
[365373698,1749624640586,-460.0,0.00021369,4]
[365373701,1749624640595,-487.82904102,0.00021369,4]
[365373703,1749624640605,-2878.74,0.00021369,4]
[365373705,1749624640615,-460.0,0.00021369,4]
[365373706,1749624640625,-460.0,0.00021369,4]
[365373708,1749624640635,-1206.43,0.00021369,4]
[365373711,1749624640645,-460.0,0.00021369,4]
[365373713,1749624640654,-460.0,0.00021369,4]
[365373714,1749624640663,-460.0,0.00021369,4]
[365373717,1749624640673,-460.0,0.00021369,4]
[365373719,1749624640682,-460.0,0.00021369,4]
[365373721,1749624640692,-943.39,0.00021369,4]
[365373723,1749624640701,-380.0,0.00021369,4]
[365373725,1749624640710,-606.07,0.00021369,4]
[365373727,1749624640719,-460.0,0.00021369,4]
[365373729,1749624640728,-460.0,0.00021369,4]
[365373730,1749624640737,-871.99,0.00021369,4]
[365373732,1749624640746,-460.0,0.00021369,4]
[365373735,1749624640756,-460.0,0.00021369,2]
[365373737,1749624640765,-1536.34,0.00021369,4]
[365373739,1749624640775,-1822.62,0.00021369,4]
[365373740,1749624640785,-460.0,0.00021369,4]
[365373742,1749624640795,-460.0,0.00021369,4]
[365373744,1749624640804,-1140.38,0.00021369,4]
[365373747,1749624640814,-460.0,0.00021369,4]
[365373749,1749624640823,-460.0,0.00021369,4]
[365373751,1749624640832,-433.49050951,0.00021369,4]
[365373753,1749624640841,-2282.66,0.00021369,4]
[365373755,1749624640851,-2561.12,0.00021369,4]
[365373757,1749624640860,-2224.68,0.00021369,4]
[365373758,1749624640870,-2932.18,0.00021369,4]
[365373760,1749624640878,-460.0,0.00021369,4]
[365373762,1749624640888,-460.0,0.00021369,4]
[365373764,1749624640897,-347.64132327,0.00021369,4]
[365373766,1749624640906,-460.0,0.00021369,4]
[365373768,1749624640915,-460.0,0.00021369,4]
[365373770,1749624640924,-714.16,0.00021369,4]
[365373772,1749624640933,-802.33,0.00021369,4]
[365373774,1749624640943,-430.0,0.00021369,4]
[365373776,1749624640952,-460.0,0.00021369,4]
[365373778,1749624640961,-460.0,0.00021369,4]
[365373780,1749624640970,-460.0,0.00021369,4]
[365373782,1749624640979,-1498.06827629,0.00021452,5]
[365373784,1749624640990,-1498.06827629,0.0002159,5]
[365373786,1749624640999,-770.28,0.00021633,3]
[365373789,1749624641009,-460.0,0.00021643,4]
[365373791,1749624641020,-420.0,0.00021643,4]
[365373792,1749624641036,-460.0,0.00021643,4]
[365373794,1749624641045,-460.0,0.00021643,4]
[365373796,1749624641055,-460.0,0.00021643,4]
[365373798,1749624641066,-460.0,0.00021643,4]
[365373801,1749624641077,-1056.32,0.00021643,4]
[365373803,1749624641086,-460.0,0.00021643,4]
[365373805,1749624641095,-460.0,0.00021643,4]
[365373806,1749624641105,-460.0,0.00021643,4]
[365373808,1749624641116,-918.59,0.00021643,4]
[365373811,1749624641125,-460.0,0.00021643,4]
[365373812,1749624641134,-1193.22,0.00021643,4]
[365373814,1749624641144,-460.0,0.00021643,4]
[365373816,1749624641153,-460.0,0.00021643,4]
[365373818,1749624641162,-460.0,0.00021643,4]
[365373820,1749624641171,-460.0,0.00021643,4]
[365373823,1749624641180,-460.0,0.00021643,4]
[365373824,1749624641190,-460.0,0.00021643,4]
[365373826,1749624641199,-925.05,0.00021643,4]
[365373828,1749624641208,-460.0,0.00021643,4]
[365373830,1749624641218,-460.0,0.00021643,4]
[365373832,1749624641227,-460.0,0.00021643,4]
[365373834,1749624641237,-2878.74,0.00021643,4]
[365373837,1749624641246,-460.0,0.00021643,4]
[365373839,1749624641255,-460.0,0.00021643,4]
[365373841,1749624641265,-1206.43,0.00021643,4]
[365373842,1749624641274,-460.0,0.00021643,4]
[365373844,1749624641283,-460.0,0.00021643,4]
[365373846,1749624641293,-460.0,0.00021643,4]
[365373848,1749624641302,-943.39,0.00021643,4]
[365373850,1749624641311,-606.07,0.00021643,4]
[365373852,1749624641320,-871.99,0.00021643,4]
[365373854,1749624641330,-460.0,0.00021643,4]
[365373855,1749624641338,-460.0,0.00021643,2]
[365373856,1749624641347,-1536.34,0.00021643,4]
[365373857,1749624641357,-1822.62,0.00021643,4]
[365373858,1749624641366,-491.26485986,0.00021643,4]
[365373859,1749624641375,-460.0,0.00021643,4]
[365373860,1749624641384,-1140.38,0.00021643,4]
[365373861,1749624641393,-460.0,0.00021643,4]
[365373862,1749624641402,-460.0,0.00021643,4]
[365373863,1749624641414,-2282.66,0.00021643,4]
[365373864,1749624641423,-2561.12,0.00021643,4]
[365373865,1749624641432,-2224.68,0.00021643,4]
[365373866,1749624641442,-2932.18,0.00021643,4]
[365373867,1749624641451,-460.0,0.00021643,4]
[365373868,1749624641461,-283.99911829,0.00021643,4]
[365373869,1749624641470,-460.0,0.00021643,4]
[365373870,1749624641479,-460.0,0.00021643,4]